bitfinex/quotes_SOLUSD_20250414
["timestamp","ask_amount","ask_price","bid_price","bid_amount"]
[1744617771454,0.03,132.48,132.45,11.7101679]
[1744617771760,11.7101679,132.46,132.42,1.634]
[1744617772466,11.7101679,132.47,132.42,13.3441679]
[1744617772855,17.7494679,132.47,132.42,19.3852679]
[1744617773278,0.03,132.48,132.44,11.7101679]
[1744617774165,0.03,132.48,132.44,17.7503679]
[1744617775768,0.03,132.48,132.44,11.7101679]
[1744617776149,11.7401679,132.48,132.43,17.7508679]
[1744617776662,11.7401679,132.48,132.44,11.7101679]
[1744617777360,11.7401679,132.48,132.42,19.3852679]
[1744617777361,11.7101679,132.47,132.42,19.3852679]
[1744617777869,11.7101679,132.47,132.42,7.6751]
[1744617778039,11.7101679,132.47,132.42,19.3852679]
[1744617778238,11.7101679,132.47,132.43,11.7101679]
[1744617778853,11.7101679,132.47,132.42,7.6751]
[1744617779365,17.7493679,132.47,132.43,11.7101679]
[1744617779864,17.7789679,132.48,132.43,17.7509679]
[1744617780065,11.7101679,132.47,132.42,19.3853679]
[1744617780264,11.7101679,132.47,132.43,11.7101679]
[1744617781764,11.7101679,132.44,132.39,31.0947679]
[1744617781966,11.7101679,132.46,132.41,11.7101679]
[1744617782152,94.6101679,132.47,132.42,11.7101679]
[1744617782343,82.9,132.47,132.43,11.7101679]
[1744617782743,88.9391,132.47,132.43,11.7101679]
[1744617782943,82.9,132.47,132.43,11.7101679]
[1744617783245,88.9392,132.47,132.43,11.7101679]
[1744617784168,88.9392,132.47,132.43,17.7510679]
[1744617785046,0.03,132.48,132.44,11.7101679]
[1744617785260,0.03,132.48,132.45,11.7101679]
[1744617785465,0.03,132.48,132.47,11.7101679]
[1744617786872,0.03,132.48,132.47,11.99449104]
[1744617787565,0.03,132.48,132.47,17.7492679]
[1744617788052,0.03,132.48,132.46,7.12]
[1744617788363,0.03,132.48,132.46,18.8301679]
[1744617788567,0.03,132.48,132.46,24.8696679]
[1744617788942,0.03,132.48,132.47,11.7101679]
[1744617789345,0.03,132.48,132.46,7.12]
[1744617789659,0.03,132.48,132.47,11.7101679]
[1744617791169,0.03,132.48,132.47,17.7492679]
[1744617792169,0.03,132.48,132.47,18.03359104]
[1744617792351,0.03,132.48,132.47,18.17575261]
[1744617792551,0.03,132.48,132.47,24.44295261]
[1744617792962,0.03,132.48,132.47,54.80276937]
[1744617793168,2.6658262,132.51,132.48,19.07613357]
[1744617793358,0.03,132.52,132.51,19.07613357]
[1744617793570,0.03,132.54,132.53,45.07613357]
[1744617793865,0.03,132.54,132.53,68.49646937]
[1744617795263,0.03,132.54,132.53,55.88312051]
[1744617795465,0.03,132.54,132.53,44.17295261]
[1744617796050,0.03,132.54,132.53,11.7101679]
[1744617796668,0.03,132.54,132.53,17.7464679]
[1744617799956,0.03,132.54,132.53,18.17295261]
[1744617800160,0.03,132.54,132.52,7.12]
[1744617801377,0.03,132.54,132.52,13.1567]
[1744617801978,0.03,132.54,132.53,11.99449104]
[1744617802171,0.03,132.54,132.53,23.84682051]
[1744617802478,0.03,132.54,132.53,12.13665261]
[1744617802861,0.03,132.54,132.53,125.09646937]
[1744617803463,0.03,132.54,132.53,131.13276937]
[1744617804678,0.03,132.54,132.53,18.03079104]
[1744617805191,0.03,132.54,132.53,18.17295261]
[1744617805358,0.03,132.54,132.53,29.88312051]
[1744617806196,0.0001,132.54,132.53,131.13276937]
[1744617809387,0.03,132.56,132.55,26.0]
[1744617809572,0.03,132.56,132.55,37.99449104]
[1744617810880,0.03,132.56,132.55,44.02989104]
[1744617811259,0.03,132.57,132.56,0.28432314]
[1744617811465,0.03,132.57,132.56,11.99449104]
[1744617812469,0.03,132.57,132.56,30.78630147]
[1744617813692,0.03,132.57,132.56,36.82130147]
[1744617814080,0.0001,132.57,132.56,36.82130147]
[1744617814286,0.03,132.62,132.58,18.933972]
[1744617814467,0.03,132.62,132.61,11.99449104]
[1744617814662,0.03,132.62,132.61,12.13665261]
[1744617815068,0.03,132.63,132.62,19.07613357]
[1744617815364,6.1747,132.72,132.64,19.07613357]
[1744617815576,90.6603,132.75,132.69,11.7101679]
[1744617815769,8.8405262,132.78,132.74,11.7101679]
[1744617815966,8.8405262,132.78,132.72,11.99449104]
[1744617815967,11.7101679,132.77,132.72,11.99449104]
[1744617816168,11.7101679,132.76,132.71,11.7101679]
[1744617816383,11.7101679,132.77,132.72,11.99449104]
[1744617817069,14.8655262,132.78,132.72,18.02209104]
[1744617817267,2.6658262,132.78,132.75,11.7101679]
[1744617817470,11.7101679,132.77,132.72,11.7101679]
[1744617818068,11.7101679,132.77,132.71,6.31232314]
[1744617818273,2.6658262,132.78,132.75,11.7101679]
[1744617818482,2.6658262,132.78,132.73,11.99449104]
[1744617818483,20.4010941,132.78,132.73,11.99449104]
[1744617818870,20.4010941,132.78,132.68,101.24964886]
[1744617818871,11.7101679,132.74,132.67,7.12]
[1744617819083,17.7365679,132.75,132.7,11.7101679]
[1744617819292,6.0264,132.75,132.71,18.64494656]
[1744617819869,30.79824656,132.76,132.71,18.64494656]
[1744617820077,18.64494656,132.75,132.7,18.64494656]
[1744617820274,12.1533,132.76,132.7,18.64494656]
[1744617820476,18.64494656,132.75,132.7,18.64494656]
[1744617820672,12.1533,132.76,132.7,18.64494656]
[1744617820895,27.218,132.76,132.68,0.14216157]
[1744617821096,18.64494656,132.74,132.69,18.64494656]
[1744617821272,18.64494656,132.73,132.69,18.64494656]
[1744617821595,18.64494656,132.74,132.7,18.64494656]
[1744617821890,18.64494656,132.74,132.68,6.17166157]
[1744617822079,18.64494656,132.74,132.7,18.64494656]
[1744617822280,18.64494656,132.75,132.7,18.64494656]
[1744617823189,6.0268,132.74,132.7,18.64494656]
[1744617823371,24.67174656,132.74,132.7,18.64494656]
[1744617823568,24.67174656,132.74,132.69,18.64494656]
[1744617824094,6.1273,132.76,132.71,18.64494656]
[1744617824296,18.64494656,132.75,132.71,18.64494656]
[1744617824504,18.64494656,132.75,132.7,18.64494656]
[1744617825189,24.67214656,132.73,132.68,18.64494656]
[1744617825392,18.64494656,132.71,132.67,7.12]
[1744617825600,7.6764,132.73,132.67,31.79484656]
[1744617825775,18.64494656,132.72,132.68,18.64494656]
[1744617825974,24.67214656,132.73,132.69,18.64494656]
[1744617826179,24.67124656,132.75,132.7,18.64494656]
[1744617826397,24.67124656,132.75,132.71,18.64494656]
[1744617826704,32.39184656,132.76,132.71,18.64494656]
[1744617827075,18.64494656,132.74,132.7,18.64494656]
[1744617827291,24.67194656,132.74,132.69,18.64494656]
[1744617827483,7.7208,132.76,132.71,18.64494656]
[1744617827489,13.7467,132.76,132.71,18.64494656]
[1744617827691,32.39164656,132.76,132.71,18.64494656]
[1744617827886,7.7208,132.76,132.72,18.64494656]
[1744617828093,27.33587276,132.78,132.74,18.64494656]
[1744617828979,8.6909262,132.78,132.74,18.64494656]
[1744617829294,2.6658262,132.78,132.74,18.64494656]
[1744617829495,21.31077276,132.78,132.72,7.1]
[1744617829802,18.64494656,132.77,132.73,18.64494656]
[1744617830096,8.6909262,132.78,132.73,18.64494656]
[1744617830293,27.33587276,132.78,132.73,18.64494656]
[1744617830491,2.6658262,132.78,132.74,18.64494656]
[1744617830685,2.6658262,132.78,132.75,18.64494656]
[1744617831000,21.31077276,132.78,132.74,18.64494656]
[1744617831218,21.31077276,132.78,132.72,13.41202314]
[1744617831219,18.64494656,132.75,132.72,7.1]
[1744617831395,24.67154656,132.75,132.72,7.1]
[1744617831703,18.64494656,132.75,132.72,7.1]
[1744617831903,18.64494656,132.74,132.72,7.1]
[1744617832118,18.64494656,132.74,132.69,18.64494656]
[1744617832276,18.64494656,132.73,132.69,18.64494656]
[1744617832983,18.64494656,132.73,132.69,24.67384656]
[1744617833579,18.64494656,132.73,132.69,18.64494656]
[1744617833778,18.64494656,132.73,132.68,31.77434656]
[1744617833991,18.64494656,132.72,132.68,7.1]
[1744617834185,6.0259,132.76,132.69,18.64494656]
[1744617834385,18.64494656,132.74,132.69,18.64494656]
[1744617834780,18.64494656,132.76,132.69,0.42648471]
[1744617834985,18.64494656,132.76,132.71,18.64494656]
[1744617835184,18.64494656,132.76,132.72,6.0277]
[1744617835383,18.64494656,132.77,132.72,24.67264656]
[1744617835585,18.64494656,132.77,132.73,18.64494656]
[1744617835790,2.6658262,132.78,132.73,18.64494656]
[1744617835995,21.31077276,132.78,132.74,18.64494656]
[1744617836205,2.6658262,132.78,132.74,18.64494656]
[1744617836408,21.31077276,132.78,132.74,18.64494656]
[1744617836700,2.6658262,132.78,132.75,18.64494656]
[1744617837083,2.6658262,132.78,132.77,24.67034656]
[1744617837483,2.6658262,132.78,132.77,43.74177783]
[1744617838215,2.62e-05,132.78,132.77,151.16667352]
[1744617838415,0.03,132.8,132.78,19.07613357]
[1744617838618,0.03,132.8,132.79,26.17143127]
[1744617839291,0.0001,132.8,132.79,50.84558013]
[1744617839691,0.03,132.88,132.8,0.42648471]
[1744617839897,0.03,132.88,132.85,18.64494656]
[1744617840092,0.03,132.88,132.84,7.1]
[1744617840093,18.67494656,132.88,132.84,7.1]
[1744617840296,0.03,132.88,132.84,25.74494656]
[1744617840896,0.03,132.88,132.84,7.1]
[1744617841103,0.03,132.88,132.85,18.64494656]
[1744617841293,0.03,132.88,132.85,24.66644656]
[1744617841602,18.64494656,132.87,132.84,7.1]
[1744617842086,18.67494656,132.88,132.84,7.1]
[1744617842290,0.03,132.88,132.84,31.76694656]
[1744617842815,18.64494656,132.87,132.84,7.1]
[1744617844411,24.66594656,132.87,132.84,7.1]
[1744617844721,0.03,132.88,132.84,31.76704656]
[1744617844891,0.03,132.88,132.87,18.64494656]
[1744617845293,0.03,132.88,132.87,43.74198013]
[1744617846116,97.9386,133.0,132.87,43.74198013]
[1744617846117,82.9,133.0,132.89,6.4926]
[1744617846410,18.64494656,132.96,132.9,7.38432314]
[1744617846606,18.64494656,132.97,132.92,18.64494656]
[1744617847114,18.64494656,132.96,132.91,18.64494656]
[1744617847293,18.64494656,132.96,132.91,24.66374656]
[1744617847687,18.64494656,132.92,132.86,6.15516157]
[1744617847892,18.64494656,132.9,132.87,7.1]
[1744617848112,18.64494656,132.88,132.87,7.1]
[1744617848606,8.0226,132.94,132.87,7.1]
[1744617848607,18.64494656,132.89,132.87,7.1]
[1744617848809,18.64494656,132.88,132.87,7.1]
[1744617849015,18.64494656,132.9,132.87,7.1]
[1744617849216,8.0226,132.94,132.87,7.1]
[1744617849406,18.64494656,132.89,132.87,7.1]
[1744617849819,6.0187,132.92,132.83,7.1]
[1744617850124,18.64494656,132.85,132.82,7.1]
[1744617850298,18.64494656,132.84,132.82,7.1]
[1744617851794,18.64494656,132.83,132.79,6.0245]
[1744617852998,18.64494656,132.83,132.78,25.74494656]
[1744617853198,18.64494656,132.8,132.78,7.1]
[1744617853592,101.54494656,132.84,132.74,0.063]
[1744617853593,18.64494656,132.79,132.74,25.80794656]
[1744617853818,18.64494656,132.78,132.74,7.163]
[1744617854417,18.64494656,132.75,132.74,0.063]
[1744617854615,18.64494656,132.76,132.74,0.063]
[1744617854798,18.64494656,132.75,132.74,0.063]
[1744617855701,24.67124656,132.75,132.74,0.063]
[1744617857125,43.32089542,132.75,132.74,0.063]
[1744617857305,24.67124656,132.75,132.74,0.063]
[1744617860707,6.0263,132.75,132.74,0.063]
[1744617860914,24.67124656,132.75,132.74,0.063]
[1744617861315,43.32089542,132.75,132.74,0.063]
[1744617866905,24.67124656,132.75,132.74,0.063]
[1744617867526,26.84284656,132.78,132.74,0.063]
[1744617867731,18.64494656,132.77,132.74,0.063]
[1744617868118,101.54494656,132.78,132.74,0.063]
[1744617868506,18.64494656,132.77,132.74,0.063]
[1744617868704,90.0,132.81,132.74,0.063]
[1744617868923,18.64494656,132.77,132.74,0.063]
[1744617869710,18.64494656,132.78,132.74,0.063]
[1744617870433,18.64494656,132.77,132.74,0.063]
[1744617870729,18.64494656,132.76,132.74,0.063]
[1744617870932,18.64494656,132.75,132.74,0.063]
[1744617872045,37.29459542,132.75,132.74,0.063]
[1744617872214,51.32029542,132.75,132.74,0.063]
[1744617873916,51.74678013,132.75,132.74,0.063]
[1744617874125,70.39172669,132.75,132.68,0.063]
[1744617874328,18.64494656,132.69,132.68,0.063]
[1744617876534,6.0286,132.7,132.68,0.063]
[1744617876850,18.64494656,132.69,132.68,0.063]
[1744617877944,24.67394656,132.69,132.68,0.063]
[1744617878844,18.64494656,132.69,132.68,0.063]
[1744617880536,24.67394656,132.69,132.68,0.063]
[1744617882042,18.64494656,132.69,132.68,0.063]
[1744617882237,82.9,132.7,132.68,0.063]
[1744617882439,18.64494656,132.69,132.68,0.063]
[1744617883634,37.29459542,132.69,132.68,0.063]
[1744617883836,18.64964886,132.67,132.6,7.163]
[1744617886526,82.9,132.66,132.62,18.64494656]
[1744617887143,82.9,132.66,132.62,24.67694656]
[1744617889843,82.9,132.69,132.63,18.64494656]
[1744617890049,101.54494656,132.69,132.64,18.64494656]
[1744617890426,18.64494656,132.68,132.64,18.64494656]
[1744617890823,18.64494656,132.68,132.63,18.64494656]
[1744617891441,82.9,132.73,132.67,18.64494656]
[1744617891832,18.64494656,132.72,132.67,18.64494656]
[1744617892033,18.64494656,132.72,132.67,24.67464656]
[1744617892652,18.64494656,132.71,132.67,6.0297]
[1744617892849,18.64494656,132.7,132.65,27.25004656]
[1744617893645,6.0278,132.72,132.65,27.25004656]
[1744617893845,18.64494656,132.71,132.67,6.0299]
[1744617894340,24.67304656,132.71,132.66,24.67524656]
[1744617894539,18.64494656,132.68,132.65,7.1]
[1744617894745,18.64494656,132.69,132.65,7.1]
[1744617894944,18.64494656,132.69,132.65,25.74494656]
[1744617895146,18.64494656,132.7,132.65,25.74494656]
[1744617895555,18.64494656,132.7,132.65,31.77584656]
[1744617895757,6.0281,132.71,132.65,31.77584656]
[1744617895955,18.64494656,132.7,132.65,31.77584656]
[1744617896453,24.67364656,132.7,132.65,31.77584656]
[1744617897045,18.64494656,132.7,132.65,31.77584656]
[1744617897252,11.66121001,132.7,132.65,24.79211001]
[1744617897453,82.9,132.73,132.66,11.66121001]
[1744617897646,11.66121001,132.71,132.66,11.66121001]
[1744617897852,11.66121001,132.7,132.66,11.66121001]
[1744617898047,82.9,132.72,132.65,24.79191001]
[1744617898244,11.66121001,132.7,132.65,24.79191001]
[1744617900468,82.9,132.72,132.66,11.66121001]
[1744617900778,11.66121001,132.71,132.66,11.66121001]
[1744617900979,11.66121001,132.69,132.65,7.1]
[1744617901280,11.66121001,132.68,132.65,7.1]
[1744617902135,11.66121001,132.68,132.65,13.1308]
[1744617902338,18.64964886,132.65,132.6,0.063]
[1744617902570,11.66121001,132.61,132.6,0.063]
[1744617902864,11.66121001,132.63,132.6,0.063]
[1744617903063,11.66121001,132.65,132.6,17.75731001]
[1744617903254,94.56121001,132.67,132.63,11.66121001]
[1744617903446,82.9,132.67,132.63,11.66121001]
[1744617903763,82.9,132.7,132.66,11.66121001]
[1744617903957,11.66121001,132.72,132.67,11.66121001]
[1744617904259,11.66121001,132.72,132.67,17.69101001]
[1744617904847,17.68901001,132.72,132.67,17.69101001]
[1744617905471,11.66121001,132.71,132.67,6.0298]
[1744617905679,11.66121001,132.69,132.64,11.66121001]
[1744617905870,11.66121001,132.7,132.65,11.66121001]
[1744617906162,94.56121001,132.71,132.66,11.66121001]
[1744617906340,82.9,132.71,132.67,17.69111001]
[1744617907552,82.9,132.71,132.69,11.66121001]
[1744617907863,82.9,132.71,132.67,17.69111001]
[1744617908661,82.9,132.71,132.68,11.66121001]
[1744617909367,82.9,132.71,132.68,17.69061001]
[1744617910557,94.56121001,132.71,132.67,6.0298]
[1744617911764,11.66121001,132.68,132.64,6.0313]
[1744617912654,11.66121001,132.66,132.62,8.6622]
[1744617912860,11.66121001,132.63,132.6,6.3008]
[1744617913440,11.66121001,132.64,132.6,6.3008]
[1744617913646,11.66121001,132.62,132.6,0.063]
[1744617914059,11.66121001,132.61,132.6,0.063]
[1744617914560,82.9,132.63,132.6,0.063]
[1744617915066,94.56121001,132.63,132.6,0.063]
[1744617915246,101.57634174,132.63,132.6,0.063]
[1744617916260,82.9,132.63,132.6,0.063]
[1744617917768,80.76584674,132.63,132.6,0.063]
[1744617918468,99.44218848,132.63,132.6,0.063]
[1744617918767,80.76584674,132.63,132.6,0.063]
[1744617921377,80.76584674,132.63,132.6,18.73934174]
[1744617923472,80.76584674,132.63,132.6,24.77224174]
[1744617924656,18.67634174,132.65,132.6,24.77224174]
[1744617924995,0.03,132.69,132.64,24.87454174]
[1744617925202,0.03,132.69,132.68,18.67634174]
[1744617925704,0.03,132.69,132.68,24.70584174]
[1744617925870,0.03,132.69,132.68,24.99016488]
[1744617926078,0.03,132.69,132.68,26.52216488]
[1744617927171,0.03,132.69,132.68,26.66432645]
[1744617927671,0.03,132.69,132.68,6.0295]
[1744617927897,0.03,132.69,132.68,18.67634174]
[1744617928408,0.03,132.69,132.68,18.96066488]
[1744617929283,0.03,132.69,132.68,24.99016488]
[1744617929598,0.03,132.69,132.68,25.13232645]
[1744617929802,0.0001,132.69,132.68,25.13232645]
[1744617930508,80.76584674,132.76,132.69,0.28432314]
[1744617930802,80.76584674,132.76,132.73,18.67634174]
[1744617931803,0.03,132.77,132.73,24.70354174]
[1744617931978,24.73174174,132.77,132.72,24.70394174]
[1744617932903,0.03,132.77,132.73,18.67634174]
[1744617933083,0.03,132.77,132.74,18.67634174]
[1744617933995,0.03,132.77,132.74,24.70284174]
[1744617934903,18.70634174,132.77,132.72,18.67634174]
[1744617935209,18.67634174,132.75,132.71,18.67634174]
[1744617935382,0.03,132.77,132.71,18.67634174]
[1744617935383,18.67634174,132.76,132.71,24.70444174]
[1744617935583,0.03,132.77,132.72,18.67634174]
[1744617935885,18.70634174,132.77,132.72,18.67634174]
[1744617936084,18.70634174,132.77,132.72,24.70384174]
[1744617936276,18.67634174,132.76,132.72,24.70384174]
[1744617937188,11.64995043,132.76,132.72,17.67745043]
[1744617937590,11.64995043,132.76,132.72,6.0275]
[1744617937990,11.64995043,132.76,132.72,17.67745043]
[1744617938485,17.67585043,132.76,132.72,11.64995043]
[1744617938699,11.64995043,132.76,132.72,17.67765043]
[1744617942686,17.70555043,132.77,132.72,17.67765043]
[1744617943015,0.03,132.77,132.76,11.64995043]
[1744617943297,0.03,132.77,132.76,18.74995043]
[1744617943485,0.03,132.77,132.76,7.1]
[1744617943685,11.67995043,132.77,132.72,24.77765043]
[1744617943891,11.64995043,132.76,132.72,13.1277]
[1744617944511,11.64995043,132.76,132.72,24.77765043]
[1744617945093,11.67995043,132.77,132.72,24.77765043]
[1744617945402,11.64995043,132.76,132.72,7.1]
[1744617945983,11.64995043,132.76,132.72,13.1276]
[1744617946505,6.0556,132.77,132.72,13.1276]
[1744617946691,17.70555043,132.77,132.72,24.77755043]
[1744617948210,0.03,132.77,132.72,24.77755043]
[1744617948408,11.64995043,132.76,132.72,24.77755043]
[1744617951207,17.70545043,132.77,132.72,24.77755043]
[1744617952308,0.03,132.77,132.76,11.64995043]
[1744617952806,0.03,132.77,132.75,11.64995043]
[1744617953686,0.03,132.77,132.73,11.64995043]
[1744617953996,11.67995043,132.77,132.73,17.67705043]
[1744617954194,0.03,132.77,132.73,17.67705043]
[1744617954412,17.70535043,132.77,132.73,6.0271]
[1744617955317,11.67995043,132.77,132.72,13.1275]
[1744617955494,11.67995043,132.77,132.72,24.77745043]
[1744617956111,11.67995043,132.77,132.72,13.1275]
[1744617956313,11.67995043,132.77,132.72,24.77745043]
[1744617956500,11.67995043,132.77,132.73,11.64995043]
[1744617957710,17.70545043,132.77,132.72,13.1275]
[1744617957908,17.70545043,132.77,132.72,24.77745043]
[1744617958713,11.67995043,132.77,132.72,24.77745043]
[1744617959710,17.70535043,132.77,132.72,24.77745043]
[1744617961104,11.64995043,132.73,132.64,6.0313]
[1744617961300,99.55765717,132.76,132.64,6.0313]
[1744617961301,11.64995043,132.67,132.64,6.0313]
[1744617961501,92.41579717,132.72,132.64,17.68125043]
[1744617961502,11.64995043,132.68,132.64,17.68125043]
[1744617962094,11.64995043,132.68,132.64,6.0313]
[1744617962715,11.64995043,132.67,132.63,24.84455043]
[1744617962917,11.64995043,132.67,132.63,7.163]
[1744617963221,11.64995043,132.66,132.63,7.163]
[1744617963724,11.64995043,132.67,132.63,13.1948]
[1744617964524,80.76584674,132.75,132.66,23.29990086]
[1744617964698,92.41579717,132.75,132.71,11.64995043]
[1744617964899,80.76584674,132.75,132.71,11.64995043]
[1744617965306,80.76584674,132.75,132.72,11.64995043]
[1744617965824,30.29959929,132.73,132.66,11.64995043]
[1744617966022,11.64995043,132.68,132.63,24.84475043]
[1744617966333,11.64995043,132.67,132.63,13.1948]
[1744617966719,11.64995043,132.67,132.63,24.84475043]
[1744617967602,11.64995043,132.66,132.63,0.063]
[1744617967911,11.64995043,132.64,132.63,0.063]
[1744617968408,11.64995043,132.65,132.63,0.063]
[1744617969102,18.67233104,132.65,132.63,0.063]
[1744617970027,18.67233104,132.64,132.63,0.063]
[1744617971932,18.67233104,132.65,132.63,0.063]
[1744617972135,80.76584674,132.67,132.64,18.67233104]
[1744617972429,80.76584674,132.67,132.65,18.67233104]
[1744617972612,80.76584674,132.71,132.66,18.67233104]
[1744617972819,80.76584674,132.74,132.7,18.67233104]
[1744617973128,80.76584674,132.74,132.71,24.70003104]
[1744617973731,18.67233104,132.73,132.69,6.0287]
[1744617974431,80.76584674,132.74,132.63,0.063]
[1744617974432,18.64964886,132.69,132.63,0.063]
[1744617974632,18.67233104,132.64,132.63,0.063]
[1744617975315,80.76584674,132.67,132.63,0.063]
[1744617975522,99.43817778,132.67,132.63,0.063]
[1744617976024,18.67233104,132.66,132.63,0.063]
[1744617976813,80.76584674,132.67,132.63,18.73533104]
[1744617977015,18.64964886,132.73,132.66,18.67233104]
[1744617977219,18.67233104,132.71,132.67,18.67233104]
[1744617977422,99.43817778,132.72,132.68,18.67233104]
[1744617978039,105.46587778,132.72,132.67,18.67233104]
[1744617978238,18.67233104,132.71,132.66,18.67233104]
[1744617979022,99.43817778,132.72,132.67,18.67233104]
[1744617979220,99.43817778,132.72,132.68,24.70143104]
[1744617979751,7.7372,132.74,132.68,24.70143104]
[1744617980048,80.79584674,132.75,132.71,18.67233104]
[1744617980247,105.49457778,132.75,132.71,18.67233104]
[1744617980447,18.67233104,132.73,132.68,31.80143104]
[1744617980625,18.67233104,132.72,132.68,31.80143104]
[1744617980939,18.67233104,132.73,132.69,18.67233104]
[1744617981141,24.70003104,132.72,132.68,7.1]
[1744617981450,6.0274,132.73,132.68,13.1295]
[1744617981626,18.67233104,132.72,132.68,31.80183104]
[1744617982152,99.43817778,132.74,132.69,18.67233104]
[1744617982335,80.76584674,132.74,132.72,18.67233104]
[1744617982515,0.03,132.75,132.72,18.67233104]
[1744617982717,0.03,132.75,132.71,18.67233104]
[1744617983334,0.03,132.75,132.71,24.70033104]
[1744617983539,0.03,132.75,132.72,18.67233104]
[1744617983749,0.03,132.75,132.74,18.67233104]
[1744617984654,0.03,132.75,132.71,31.80033104]
[1744617984943,0.03,132.75,132.72,18.67233104]
[1744617985736,0.03,132.75,132.73,24.69953104]
[1744617985938,0.03,132.75,132.73,18.67233104]
[1744617986138,0.03,132.75,132.72,24.69993104]
[1744617986526,0.03,132.75,132.73,18.67233104]
[1744617986730,0.03,132.75,132.72,24.69993104]
[1744617987930,0.03,132.75,132.73,18.67233104]
[1744617988646,0.03,132.75,132.74,18.67233104]
[1744617989251,0.03,132.75,132.73,24.69943104]
[1744617989623,0.03,132.75,132.74,18.67233104]
[1744617990058,0.03,132.75,132.73,24.69943104]
[1744617990846,18.70233104,132.75,132.7,7.1]
[1744617991045,18.70233104,132.75,132.7,25.77233104]
[1744617991238,0.03,132.75,132.71,18.67233104]
[1744617991437,0.03,132.75,132.72,18.67233104]
[1744617991638,0.03,132.75,132.71,18.67233104]
[1744617992028,0.03,132.75,132.71,24.70023104]
[1744617992644,0.03,132.75,132.72,18.67233104]
[1744617992946,18.70233104,132.75,132.69,13.129]
[1744617993154,18.70233104,132.75,132.7,18.67233104]
[1744617993334,0.03,132.75,132.72,18.67233104]
[1744617993533,0.03,132.75,132.73,18.67233104]
[1744617993738,0.03,132.75,132.71,18.67233104]
[1744617994145,18.70233104,132.75,132.7,24.70083104]
[1744617994853,24.72873104,132.75,132.7,24.70083104]
[1744617995050,0.03,132.75,132.71,18.67233104]
[1744617995846,0.03,132.75,132.72,18.67233104]
[1744617996237,0.03,132.75,132.71,18.67233104]
[1744617997152,18.70233104,132.75,132.7,18.67233104]
[1744617997561,0.03,132.75,132.7,18.67233104]
[1744617997867,0.03,132.75,132.7,24.70083104]
[1744617998160,0.03,132.75,132.71,18.67233104]
[1744617999264,0.03,132.75,132.7,24.70083104]
[1744618001145,0.03,132.75,132.7,6.0285]
[1744618001548,0.03,132.75,132.74,18.67233104]
[1744618001765,0.03,132.75,132.74,25.77233104]
[1744618002745,0.03,132.75,132.74,31.79913104]
[1744618006043,0.03,132.75,132.74,31.94129261]
[1744618006243,0.03,132.75,132.74,31.79913104]
[1744618006563,0.03,132.75,132.74,24.69913104]
[1744618008649,0.03,132.75,132.71,18.67233104]
[1744618009579,0.03,132.75,132.71,24.70033104]
[1744618010085,101.07477778,132.75,132.7,7.1]
[1744618010260,18.67233104,132.74,132.69,18.67233104]
[1744618011262,18.67233104,132.73,132.69,6.0289]
[1744618011558,24.69913104,132.74,132.69,18.67233104]
[1744618011755,88.70004674,132.75,132.71,18.67233104]
[1744618011957,0.03,132.75,132.74,18.67233104]
[1744618012270,0.03,132.75,132.74,18.95665418]
[1744618012457,0.03,132.77,132.74,18.95665418]
[1744618012655,0.03,132.77,132.76,18.67233104]
[1744618013456,0.03,132.77,132.76,24.69823104]
[1744618015656,0.03,132.77,132.76,31.79823104]
[1744618019358,0.03,132.77,132.76,50.75488522]
[1744618021983,0.03,132.77,132.76,31.79823104]
[1744618022361,0.03,132.77,132.76,32.08255418]
[1744618022571,0.03,132.81,132.78,0.14216157]
[1744618022775,6.6665,132.9,132.82,56.13647251]
[1744618023082,6.2092,132.94,132.89,18.67233104]
[1744618023283,6.2092,132.94,132.9,18.67233104]
[1744618023284,105.64737778,132.94,132.9,18.67233104]
[1744618023465,18.67233104,132.91,132.81,21.0818]
[1744618023665,18.67233104,132.89,132.84,18.67233104]
[1744618023900,18.67233104,132.89,132.85,18.67233104]
[1744618024075,99.43817778,132.9,132.85,18.67233104]
[1744618024279,80.76584674,132.9,132.87,18.67233104]
[1744618024665,86.78544674,132.9,132.86,18.67233104]
[1744618025271,99.43817778,132.93,132.88,18.67233104]